bitfinex/quotes_SOLUSD_20260223
["timestamp","ask_amount","ask_price","bid_price","bid_amount"]
[1771889315382,1.01092001,78.287,78.254,0.98586951]
[1771889316949,12.773676,78.286,78.255,12.77873618]
[1771889317149,1.01092001,78.285,78.256,0.98586951]
[1771889322475,1.01092001,78.285,78.261,0.98586951]
[1771889323354,12.773676,78.286,78.261,0.98586951]
[1771889324977,13.7824752,78.299,78.271,0.98586951]
[1771889325275,1.01092001,78.298,78.271,0.98586951]
[1771889326364,1.01092001,78.289,78.263,0.98586951]
[1771889327673,1.01092001,78.287,78.265,0.98586951]
[1771889328780,1.01842129,78.285,78.27,5.52343572]
[1771889328962,1.01842129,78.285,78.269,0.94015863]
[1771889333682,1.01842129,78.288,78.271,0.94015863]
[1771889333879,1.01842129,78.288,78.27,5.52343572]
[1771889334072,1.01842129,78.288,78.267,0.94015863]
[1771889335590,1.01842129,78.287,78.267,0.94015863]
[1771889336779,1.01842129,78.287,78.271,0.94015863]
[1771889339693,1.01842129,78.285,78.271,0.94015863]
[1771889340487,1.01842129,78.285,78.249,12.77970641]
[1771889340691,1.01842129,78.285,78.251,0.94015863]
[1771889341978,1.01842129,78.283,78.251,0.94015863]
[1771889342389,1.01842129,78.283,78.228,5.36086188]
[1771889342390,1.01842129,78.283,78.253,0.94015863]
[1771889342891,1.01842129,78.279,78.253,0.94015863]
[1771889344382,12.77498147,78.278,78.253,0.94015863]
[1771889344589,1.01842129,78.277,78.253,0.94015863]
[1771889346401,1.01842129,78.287,78.271,0.94015863]
[1771889346785,1.01842129,78.287,78.257,0.94015863]
[1771889347691,1.01842129,78.285,78.257,0.94015863]
[1771889349099,44.70786602,78.286,78.257,0.94015863]
[1771889349100,1.01842129,78.283,78.257,0.94015863]
[1771889349299,1.01842129,78.283,78.261,0.94015863]
[1771889350983,1.01842129,78.281,78.261,0.94015863]
[1771889353303,1.01842129,78.285,78.261,0.94015863]
[1771889353503,12.77400235,78.284,78.26,5.52343572]
[1771889353708,1.01842129,78.283,78.263,0.94015863]
[1771889356999,44.71015047,78.282,78.263,0.94015863]
[1771889357205,1.01842129,78.281,78.251,0.94015863]
[1771889357590,1.01842129,78.281,78.261,0.94015863]
[1771889358511,13.74562017,78.28,78.261,0.94015863]
[1771889361097,0.98694876,78.279,78.261,0.94015863]
[1771889362317,0.98694876,78.298,78.261,0.94015863]
[1771889362796,0.98694876,78.298,78.262,12.77759321]
[1771889362996,0.98694876,78.298,78.263,0.93776488]
[1771889363800,44.70158498,78.297,78.263,0.93776488]
[1771889364119,0.98694876,78.296,78.263,0.93776488]
[1771889367706,12.77220767,78.295,78.271,0.93776488]
[1771889367920,0.98694876,78.294,78.271,0.93776488]
[1771889369519,0.98694876,78.292,78.271,0.93776488]
[1771889374421,0.98694876,78.29,78.271,0.93776488]
[1771889375516,12.77318652,78.289,78.271,0.93776488]
[1771889375709,13.76013528,78.289,78.271,0.93776488]
[1771889377922,0.98694876,78.288,78.271,0.93776488]
[1771889378624,12.77351284,78.287,78.271,0.93776488]
[1771889379816,13.7604616,78.287,78.271,0.93776488]
[1771889380922,0.98694876,78.286,78.271,0.93776488]
[1771889387328,13.76078793,78.285,78.271,0.93776488]
[1771889389118,12.77383917,78.285,78.271,0.93776488]
[1771889389931,0.95576364,78.287,78.271,0.93776488]
[1771889390828,12.77334968,78.288,78.271,0.93776488]
[1771889393211,0.95576364,78.288,78.271,0.93776488]
[1771889394736,0.95576364,78.303,78.281,0.99609933]
[1771889398031,0.95576364,78.301,78.28,5.52206706]
[1771889398343,0.95576364,78.301,78.276,0.99609933]
[1771889401549,0.95576364,78.299,78.265,0.99609933]
[1771889402451,0.95576364,78.305,78.291,0.99609933]
[1771889403631,0.95576364,78.303,78.291,0.99609933]
[1771889404226,0.95576364,78.303,78.286,0.99609933]
[1771889411450,12.76945727,78.312,78.291,0.99609933]
[1771889411634,0.95576364,78.311,78.291,0.99609933]
[1771889412649,0.95576364,78.309,78.291,0.99609933]
[1771889416749,0.95576364,78.307,78.291,0.99609933]
[1771889418846,0.90536678,78.305,78.291,0.99609933]
[1771889419159,0.90536678,78.305,78.287,0.91698653]
[1771889425041,12.77073968,78.304,78.287,0.91698653]
[1771889425241,0.93022727,78.303,78.287,0.91698653]
[1771889432463,0.93022727,78.303,78.283,0.91976081]
[1771889432665,0.93022727,78.303,78.283,13.69383617]
[1771889433048,0.93022727,78.303,78.284,0.91976081]
[1771889434064,0.93022727,78.303,78.291,0.91976081]
[1771889435267,0.93022727,78.307,78.291,0.91976081]
[1771889435570,0.93022727,78.327,78.301,0.91976081]
[1771889435773,0.93022727,78.327,78.311,0.91976081]
[1771889439069,0.93022727,78.325,78.307,0.91976081]
[1771889439673,0.93022727,78.325,78.31,5.5162036]
[1771889442169,0.93022727,78.325,78.311,0.91976081]
[1771889442376,0.93022727,78.329,78.311,0.91976081]
[1771889443562,12.76682667,78.328,78.311,0.91976081]
[1771889443882,0.93022727,78.327,78.311,0.91976081]
[1771889451594,12.76606124,78.333,78.312,0.99180374]
[1771889451776,0.97599558,78.332,78.312,0.99180374]
[1771889454689,12.76503401,78.339,78.321,0.99180374]
[1771889454988,0.97599558,78.338,78.321,0.99180374]
[1771889459388,12.76535991,78.337,78.321,0.99180374]
[1771889459591,0.97599558,78.336,78.321,0.99180374]
[1771889461594,12.76568583,78.335,78.321,0.99180374]
[1771889461898,0.97599558,78.334,78.311,0.99180374]
[1771889462096,0.97599558,78.334,78.31,5.5162036]
[1771889462988,0.97599558,78.332,78.31,5.5162036]
[1771889463997,0.97599558,78.332,78.31,19.27762638]
[1771889464190,0.97599558,78.332,78.311,0.99180374]
[1771889464698,0.2,78.34,78.321,0.99180374]
[1771889464902,0.2,78.34,78.331,0.99180374]
[1771889467600,0.97599558,78.339,78.317,0.99180374]
[1771889468496,12.76519696,78.338,78.317,0.99180374]
[1771889468698,0.97599558,78.337,78.317,0.99180374]
[1771889469799,0.97599558,78.337,78.318,12.7684568]
[1771889470004,0.97599558,78.329,78.291,0.99180374]
[1771889473606,0.97599558,78.327,78.3,5.5162036]
[1771889477489,12.76715266,78.326,78.298,0.99180374]
[1771889477686,0.97599558,78.325,78.298,0.99180374]
[1771889480710,0.95220356,78.323,78.3,6.44597439]
[1771889480890,0.95220356,78.323,78.301,0.9892508]
[1771889482714,0.98988211,78.321,78.301,0.9892508]
[1771889483804,12.7678047,78.322,78.301,0.9892508]
[1771889484198,0.98988211,78.321,78.301,0.9892508]
[1771889487257,0.98988211,78.319,78.301,0.9892508]
[1771889487950,0.98988211,78.319,78.289,0.9892508]
[1771889488156,0.98988211,78.309,78.282,0.9892508]
[1771889489149,0.98988211,78.309,78.284,0.9892508]
[1771889492759,0.98988211,78.309,78.286,0.9892508]
[1771889495346,0.98988211,78.309,78.291,0.9892508]
[1771889501367,0.98988211,78.319,78.293,0.9892508]
[1771889502570,0.98988211,78.319,78.3,5.51945507]
[1771889502769,0.98988211,78.319,78.301,0.9892508]
[1771889505868,0.98988211,78.319,78.297,12.77188142]
[1771889508870,0.98988211,78.319,78.295,0.93766318]
[1771889510456,0.91576502,78.323,78.301,0.93766318]
[1771889510657,0.91576502,78.321,78.301,0.93766318]
[1771889513173,0.91576502,78.319,78.296,0.93766318]
[1771889514664,0.91576502,78.319,78.298,0.93766318]
[1771889516782,0.91576502,78.309,78.289,12.77304007]
[1771889517378,0.91576502,78.309,78.29,0.93766318]
[1771889517763,0.91576502,78.309,78.291,0.93766318]
[1771889521485,0.91576502,78.309,78.289,12.77304007]
[1771889521672,0.91576502,78.309,78.29,0.93766318]
[1771889522791,0.91576502,78.316,78.291,0.93766318]
[1771889524783,0.91576502,78.338,78.301,0.93766318]
[1771889525573,0.91576502,78.333,78.301,0.93766318]
[1771889526597,0.91576502,78.331,78.302,0.93766318]
[1771889530384,0.91576502,78.329,78.302,0.93766318]
[1771889531295,12.76682667,78.328,78.302,0.93766318]
[1771889531485,0.91576502,78.319,78.281,12.77449189]
[1771889531681,0.91576502,78.319,78.29,0.93766318]
[1771889531899,0.91576502,78.319,78.29,6.45711825]
[1771889532680,0.91576502,78.319,78.29,0.93766318]
[1771889535800,12.7684568,78.318,78.282,0.93766318]
[1771889536003,0.91576502,78.309,78.282,0.93766318]
[1771889539009,0.92450162,78.285,78.17,103.5]
[1771889539208,5.51945507,78.26,78.22,5.51945507]
[1771889539508,0.92450162,78.259,78.23,5.51945507]
[1771889541100,0.93560364,78.257,78.231,0.45373295]
[1771889542005,5.51945507,78.24,78.231,0.45373295]
[1771889542685,5.51945507,78.24,78.212,12.7856423]
[1771889543001,5.51945507,78.22,78.21,0.1]
[1771889543505,12.78134945,78.239,78.21,0.1]
[1771889543506,6.50648191,78.23,78.21,0.1]
[1771889544093,0.98702684,78.229,78.21,0.1]
[1771889544803,5.51945507,78.22,78.2,0.1]
[1771889545993,0.98702684,78.219,78.2,0.1]
[1771889549799,6.07431551,78.212,78.2,0.1]
[1771889550897,0.98702684,78.219,78.2,0.1]
[1771889556214,103.9,78.271,78.2,0.1]
[1771889556215,0.98702684,78.224,78.2,0.1]
[1771889558711,63.88825508,78.262,78.189,57.58]
[1771889558712,5.51945507,78.21,78.189,57.58]
[1771889558899,0.98702684,78.209,78.189,57.58]
[1771889559797,5.51945507,78.23,78.192,5.64518502]
[1771889559998,0.98702684,78.229,78.192,5.64518502]
[1771889560915,0.98702684,78.229,78.195,0.28432314]
[1771889562517,5.53211053,78.28,78.189,57.58]
[1771889562518,0.98702684,78.209,78.189,57.58]
[1771889563103,0.98702684,78.209,78.191,12.78919568]
[1771889565518,0.98702684,78.209,78.185,3.69383402]
[1771889565719,0.98702684,78.209,78.181,12.79083153]
[1771889568709,0.98702684,78.209,78.181,0.28432314]
[1771889569811,0.98702684,78.215,78.181,0.28432314]
[1771889571626,0.98702684,78.215,78.182,12.79066792]
[1771889575610,0.98702684,78.215,78.19,0.3]
[1771889576529,0.98702684,78.215,78.2,0.2]
[1771889577622,0.98702684,78.215,78.21,0.2]
[1771889580942,5.53211053,78.23,78.21,0.2]
[1771889581126,5.53211053,78.22,78.21,0.2]
[1771889581525,5.53211053,78.22,78.2,0.2]
[1771889582129,5.53211053,78.22,78.201,12.78756026]
[1771889582940,0.83104522,78.219,78.21,0.2]
[1771889584037,0.63104522,78.219,78.21,0.2]
[1771889584437,12.78470299,78.219,78.2,0.2]
[1771889584639,5.53211053,78.21,78.2,0.2]
[1771889584845,5.33211053,78.21,78.2,0.2]
[1771889585041,5.33211053,78.21,78.201,0.83927018]
[1771889585345,12.78134945,78.239,78.202,0.83927018]
[1771889585639,5.53211053,78.23,78.202,0.83927018]
[1771889586147,0.83104522,78.229,78.202,0.83927018]
[1771889586541,0.83104522,78.219,78.203,12.78723322]
[1771889590951,0.83104522,78.219,78.202,0.2]
[1771889590952,0.83104522,78.218,78.202,0.2]
[1771889591527,0.83104522,78.218,78.212,0.2]
[1771889591742,0.83104522,78.218,78.202,0.2]
[1771889592132,0.83104522,78.218,78.202,1.03927018]
[1771889592642,0.63104522,78.218,78.202,1.03927018]
[1771889593247,12.78494444,78.217,78.191,0.83927018]
[1771889593451,0.63104522,78.218,78.191,0.83927018]
[1771889594033,5.53211053,78.23,78.192,0.83927018]
[1771889594344,5.53211053,78.22,78.192,0.83927018]
[1771889595852,6.36315575,78.22,78.194,0.83927018]
[1771889596050,5.53211053,78.22,78.194,0.83927018]
[1771889596352,6.36315575,78.22,78.194,0.83927018]
[1771889597137,6.36315575,78.23,78.194,0.83927018]
[1771889597942,5.53211053,78.24,78.202,0.75537256]
[1771889598253,5.53211053,78.24,78.212,0.75537256]
[1771889599138,5.53211053,78.24,78.212,0.2]
[1771889599334,5.53211053,78.24,78.213,0.75537256]
[1771889600039,5.53211053,78.24,78.223,0.75537256]
[1771889602642,5.53211053,78.24,78.224,0.72076598]
[1771889605745,0.67016535,78.239,78.223,12.98396379]
[1771889606055,0.67016535,78.239,78.223,0.2]
[1771889606449,0.67016535,78.239,78.233,0.2]
[1771889607258,0.47016535,78.239,78.233,0.2]
[1771889608064,0.47016535,78.239,78.223,0.2]
[1771889608556,0.47016535,78.239,78.223,0.92076598]
[1771889611257,0.47016535,78.239,78.224,0.72076598]
[1771889611867,0.47016535,78.239,78.225,12.78363694]
[1771889612059,0.67016535,78.266,78.228,0.72076598]
[1771889612271,0.67016535,78.266,78.232,0.72076598]
[1771889612940,12.77563431,78.274,78.232,0.72076598]
[1771889613553,0.67016535,78.273,78.232,0.72076598]
[1771889613953,0.67016535,78.271,78.234,0.72076598]
[1771889614854,0.67016535,78.269,78.234,0.72076598]
[1771889616166,0.67016535,78.267,78.244,0.72076598]
[1771889621065,5.53211053,78.27,78.244,0.72076598]
[1771889621066,0.67016535,78.265,78.244,0.72076598]
[1771889622664,0.67016535,78.265,78.245,0.72076598]
[1771889623661,0.67016535,78.265,78.254,0.2]
[1771889624471,13.24743203,78.264,78.254,0.2]
[1771889624860,0.67016535,78.263,78.254,0.2]
[1771889629857,0.67016535,78.263,78.254,0.4]
[1771889630652,0.47016535,78.263,78.254,0.4]
[1771889631668,0.27016535,78.263,78.254,0.4]
[1771889635280,0.65152558,78.268,78.254,0.4]
[1771889635482,0.65152558,78.268,78.254,1.04191013]
[1771889636984,13.42827334,78.268,78.254,1.24191013]
[1771889637882,13.42827334,78.268,78.264,0.2]
[1771889638072,0.65152558,78.267,78.264,0.2]
[1771889638683,0.65152558,78.267,78.254,0.6]
[1771889638883,0.45152558,78.267,78.254,0.6]
[1771889639184,44.71198426,78.279,78.255,0.64191013]
[1771889640064,5.52584478,78.27,78.254,0.6]
[1771889640265,5.52584478,78.26,78.244,0.2]
[1771889640883,0.49077906,78.259,78.244,0.2]
[1771889641585,0.48729017,78.257,78.244,0.2]
[1771889641781,0.48729017,78.249,78.231,0.64191013]
[1771889642177,0.48729017,78.249,78.234,0.64191013]
[1771889644082,12.77987935,78.248,78.234,0.64191013]
[1771889644790,0.47706209,78.247,78.233,0.4]
[1771889644976,0.47706209,78.247,78.243,0.2]
[1771889645177,0.47706209,78.247,78.233,0.4]
[1771889646184,0.27706209,78.247,78.233,0.4]
[1771889647590,0.27706209,78.247,78.233,1.04191013]
[1771889647781,12.77840959,78.257,78.234,0.64191013]
[1771889648184,0.26396457,78.256,78.234,0.64191013]
[1771889650990,12.77873618,78.255,78.234,0.64191013]
[1771889651290,0.25453105,78.254,78.234,0.64191013]
[1771889651702,0.25453105,78.254,78.235,0.64191013]
[1771889652699,0.25453105,78.254,78.244,0.2]
[1771889653174,13.02748403,78.253,78.244,0.2]
[1771889653372,12.82748403,78.253,78.244,0.2]
[1771889654074,0.24842125,78.252,78.244,0.2]
[1771889655188,13.02184039,78.251,78.238,0.64191013]
[1771889655397,0.24245099,78.249,78.234,0.84191013]
[1771889655993,0.24245099,78.249,78.235,0.64191013]
[1771889656485,13.01890659,78.251,78.235,0.64191013]
[1771889656910,0.23951719,78.25,78.235,0.64191013]
[1771889658691,12.77971603,78.249,78.236,0.59880054]
[1771889660480,12.57971603,78.249,78.236,0.59880054]
[1771889673103,0.18975712,78.254,78.236,0.59880054]
[1771889674519,0.18742857,78.249,78.236,0.59880054]
[1771889675806,12.77922609,78.252,78.236,0.59880054]
[1771889676220,12.96207748,78.252,78.236,0.59880054]
[1771889676513,0.18285139,78.251,78.236,0.59880054]
[1771889678214,12.77955271,78.25,78.236,0.59880054]
[1771889683206,12.77955271,78.25,78.237,0.57076466]
[1771889685024,12.57955271,78.25,78.237,0.57076466]
[1771889688905,0.15554394,78.25,78.237,0.57076466]
[1771889690030,0.15554394,78.25,78.237,0.77076466]
[1771889691813,31.94577021,78.258,78.257,0.04445606]
[1771889692013,0.28432314,78.269,78.237,0.2]
[1771889692228,5.52833803,78.26,78.238,0.58425854]
[1771889695424,12.77808303,78.259,78.238,0.58425854]
[1771889700643,51.07139112,78.322,78.241,0.52740637]
[1771889700822,12.77155519,78.299,78.271,0.52740637]
[1771889701135,0.2,78.31,78.281,0.52740637]
[1771889701335,0.2,78.31,78.291,0.52740637]
[1771889701915,0.55801281,78.309,78.291,0.52740637]
[1771889702325,0.55801281,78.308,78.291,0.52740637]
[1771889703521,13.32826323,78.307,78.291,0.52740637]
[1771889705023,12.77025042,78.307,78.291,0.52740637]
[1771889705231,0.2,78.31,78.291,0.52740637]
[1771889705428,12.76992427,78.309,78.291,0.52740637]
[1771889707636,0.2,78.31,78.291,0.52740637]
[1771889707816,0.2,78.31,78.292,0.52740637]
[1771889708718,12.9698177,78.31,78.292,0.52740637]
[1771889709136,0.55801281,78.309,78.292,0.52740637]
[1771889709319,0.55801281,78.309,78.285,0.52740637]
[1771889709522,0.55801281,78.309,78.271,0.52740637]
[1771889712247,12.77008734,78.308,78.271,0.52740637]
[1771889712425,0.55801281,78.307,78.271,0.52740637]
[1771889714941,0.55801281,78.305,78.273,0.52740637]
[1771889717933,0.57672394,78.303,78.273,0.52740637]
[1771889718338,12.77073968,78.304,78.273,0.52740637]
[1771889721433,0.5668642,78.304,78.273,0.52740637]
[1771889724651,13.33776697,78.303,78.275,0.53356217]
[1771889725333,0.5668642,78.302,78.275,0.53356217]
[1771889730437,13.33809317,78.301,78.275,0.53356217]
[1771889732064,0.5668642,78.3,78.275,0.53356217]
[1771889733965,12.77155519,78.299,78.275,0.53356217]
[1771889735944,0.5668642,78.304,78.275,0.53356217]
[1771889739270,0.5668642,78.302,78.275,0.53356217]
[1771889743354,0.5668642,78.3,78.275,0.53356217]
[1771889744362,0.5668642,78.298,78.269,13.30994436]
[1771889744672,0.5668642,78.298,78.27,0.53356217]
[1771889747163,0.5668642,78.296,78.242,103.5]
[1771889747365,0.5668642,78.289,78.251,0.28432314]
[1771889747666,0.5668642,78.289,78.26,5.52173166]
[1771889748663,0.57052785,78.296,78.28,5.52173166]
[1771889748853,13.34187637,78.301,78.28,5.52173166]
[1771889749166,0.57052785,78.3,78.28,5.52173166]
[1771889749370,0.57052785,78.3,78.281,0.56560232]
[1771889750571,0.57052785,78.298,78.281,0.56560232]
[1771889753871,0.57052785,78.308,78.281,0.56560232]
[1771889756759,0.57052785,78.306,78.281,0.56560232]
[1771889759775,0.57052785,78.304,78.281,0.56560232]
[1771889761986,0.57052785,78.302,78.281,0.56560232]
[1771889765585,12.77122897,78.301,78.281,0.56560232]
[1771889765882,0.57052785,78.3,78.281,0.56560232]
[1771889767880,0.57052785,78.298,78.281,0.56560232]
[1771889772988,12.77188142,78.297,78.281,0.56560232]
[1771889773288,0.57052785,78.289,78.261,12.77772402]
[1771889773678,0.57052785,78.289,78.261,13.34332634]
[1771889774184,0.57052785,78.289,78.262,0.56560232]
[1771889774773,0.57052785,78.289,78.241,5.36086188]
[1771889774774,0.57052785,78.269,78.231,13.34825881]
[1771889775090,0.57052785,78.269,78.232,0.56560232]
[1771889775579,0.57052785,78.259,78.232,0.56560232]
[1771889775983,0.57052785,78.259,78.231,12.78265649]
[1771889776184,0.57052785,78.259,78.222,0.56560232]
[1771889776897,5.52173166,78.26,78.222,0.56560232]
[1771889776898,0.57052785,78.257,78.222,0.56560232]
[1771889777993,0.65525277,78.239,78.206,0.6327418]
[1771889778204,0.65525277,78.255,78.211,0.6327418]
[1771889778371,0.65525277,78.249,78.211,0.6327418]
[1771889779096,0.65525277,78.249,78.221,0.6327418]
[1771889780987,0.66039628,78.248,78.221,0.6327418]
[1771889783282,0.66039628,78.246,78.221,0.6327418]
[1771889783489,0.66039628,78.239,78.21,0.63265787]
[1771889784589,0.66039628,78.229,78.201,0.63265787]
[1771889786205,0.66039628,78.229,78.203,0.63265787]
[1771889786780,0.66039628,78.227,78.198,13.42058216]
[1771889787099,0.66039628,78.227,78.199,0.63265787]
[1771889787307,0.66039628,78.233,78.211,0.63265787]
[1771889787893,0.66039628,78.233,78.206,0.63265787]
[1771889788207,0.66039628,78.229,78.2,5.52173166]
[1771889788407,0.66039628,78.229,78.201,0.63265787]
[1771889789604,0.66039628,78.227,78.201,0.63265787]
[1771889791791,0.66039628,78.225,78.201,0.63265787]
[1771889793807,0.66039628,78.223,78.201,0.63265787]
[1771889794898,0.66039628,78.219,78.19,0.1]
[1771889795092,0.66039628,78.209,78.19,0.1]
[1771889795700,0.66039628,78.23,78.201,0.63265787]
[1771889796793,0.66039628,78.219,78.19,0.73265787]
[1771889797798,5.52173166,78.2,78.18,0.73265787]
[1771889798108,0.66039628,78.199,78.18,0.1]
[1771889798310,0.66039628,78.199,78.18,0.73265787]
[1771889798706,0.66039628,78.199,78.18,0.1]
[1771889799010,0.66039628,78.197,78.163,12.7936156]
[1771889799208,0.66039628,78.189,78.163,12.7936156]
[1771889801116,0.66039628,78.189,78.17,5.52173166]
[1771889802907,0.66039628,78.198,78.172,0.63265787]
[1771889803617,0.66039628,78.208,78.19,5.52173166]
[1771889804414,0.66039628,78.208,78.184,0.63265787]
[1771889805108,0.66039628,78.208,78.185,12.79017714]
[1771889805314,0.66039628,78.208,78.186,0.63265787]
[1771889807100,0.66039628,78.219,78.191,0.63265787]
[1771889812226,0.63950102,78.217,78.191,0.63265787]
[1771889814928,0.63950102,78.215,78.186,0.67999735]
[1771889817508,0.63950102,78.215,78.187,12.78984997]
[1771889817710,0.63950102,78.215,78.187,13.46984732]
[1771889817921,0.63950102,78.215,78.188,0.67999735]
[1771889819722,0.63950102,78.199,78.162,0.67999735]
[1771889819924,0.63950102,78.199,78.171,0.67999735]
[1771889820531,0.28432314,78.188,78.16,0.1]
[1771889820835,0.63950102,78.169,78.14,5.5339713]
[1771889821518,0.63950102,78.169,78.141,0.67999735]
[1771889821829,0.63950102,78.169,78.142,12.79721532]
[1771889822013,0.63950102,78.169,78.143,0.67999735]
[1771889822920,0.63950102,78.169,78.151,0.67999735]
[1771889823337,0.63950102,78.169,78.15,5.5339713]
[1771889824727,0.63950102,78.167,78.145,0.67999735]
[1771889825107,0.63950102,78.167,78.141,0.67999735]
[1771889829827,12.79328608,78.166,78.141,0.67999735]
[1771889830028,0.63950102,78.165,78.136,13.47819197]
[1771889830618,0.63950102,78.165,78.137,0.67999735]
[1771889831335,0.63950102,78.165,78.132,12.79877363]
[1771889831515,0.63950102,78.165,78.133,0.67999735]
[1771889833941,0.63950102,78.139,78.12,0.1]
[1771889834132,0.63950102,78.137,78.111,12.80229417]
[1771889834440,0.63950102,78.137,78.112,0.67999735]
[1771889834745,44.77764699,78.164,78.071,0.76634199]
[1771889834746,0.28432314,78.119,78.071,0.76634199]
[1771889834941,5.5339713,78.11,78.071,0.76634199]
[1771889835138,0.28432314,78.109,78.071,0.76634199]
[1771889835331,5.5339713,78.1,78.07,0.2430526]
[1771889835641,0.28432314,78.099,78.07,0.2430526]
[1771889835939,0.28432314,78.097,78.07,0.2430526]
[1771889837537,12.80353538,78.104,78.071,0.76634199]
[1771889838126,0.28432314,78.112,78.071,0.76634199]
[1771889838334,0.28432314,78.119,78.081,0.76634199]
[1771889839032,0.02310865,78.118,78.081,0.76634199]
[1771889840940,0.02973913,78.116,78.081,0.76634199]
[1771889841441,0.03299737,78.099,78.075,0.76634199]
[1771889841636,0.03299737,78.099,78.07,0.2430526]
[1771889842441,0.03299737,78.099,78.07,1.00939459]
[1771889843035,0.03621818,78.105,78.072,0.76634199]
[1771889845644,0.28432314,78.107,78.07,1e-08]
[1771889845645,0.04566034,78.088,78.07,1e-08]
[1771889846742,0.28432314,78.079,78.05,0.0512643]
[1771889846943,5.1230294,78.094,78.029,0.79070984]
[1771889846944,0.28432314,78.059,78.029,0.79070984]
[1771889847247,0.28432314,78.059,78.023,0.79070984]
[1771889847425,5.5339713,78.05,78.023,0.79070984]
[1771889848343,5.5339713,78.03,78.001,0.79070984]
[1771889849548,12.81574799,78.029,78.001,0.79070984]
[1771889850358,5.5339713,78.02,78.001,0.79070984]
[1771889851545,12.81574799,78.029,78.001,0.79070984]
[1771889852336,5.5339713,78.03,78.001,0.79070984]
[1771889852732,32.0301885,78.052,78.011,0.79070984]
[1771889852937,5.5339713,78.03,78.011,0.79070984]
[1771889853235,5.5339713,78.03,77.941,51.32084708]
[1771889853236,0.02136312,78.028,77.997,0.79070984]
[1771889857140,0.02136312,78.028,77.998,0.79070984]
[1771889857339,12.81518173,78.033,77.998,0.79070984]
[1771889857640,5.5679081,78.03,77.998,0.79070984]
[1771889857954,0.0339368,78.03,77.998,0.79070984]
[1771889864360,0.0339368,78.03,78.0,0.79070984]
[1771889868658,12.81352411,78.043,78.002,0.79070984]
[1771889868854,12.81352411,78.043,78.011,0.79070984]
[1771889869551,0.07101077,78.038,78.011,0.79070984]
[1771889870959,0.07363862,78.036,78.011,0.79070984]
[1771889873748,0.07363862,78.036,78.012,0.79070984]
[1771889874057,0.08134244,78.035,78.012,0.79070984]
[1771889880261,0.0983129,78.055,78.014,0.79070984]
[1771889880762,12.81000204,78.064,78.031,0.79070984]
[1771889881156,13.09350476,78.069,78.032,0.79070984]
[1771889881467,0.10062716,78.068,78.032,0.79070984]
[1771889881763,0.10062716,78.068,78.041,0.79070984]
[1771889881967,0.3849503,78.068,78.041,0.79070984]
[1771889882571,0.28432314,78.068,78.041,0.79070984]
[1771889883750,12.80950978,78.067,78.041,0.79070984]
[1771889885756,0.10517623,78.068,78.041,0.79070984]
[1771889886970,44.82639378,78.079,78.051,0.79070984]
[1771889887151,0.11396504,78.076,78.051,0.79070984]
[1771889890969,44.96855535,78.079,78.041,0.79070984]
[1771889890970,0.1202952,78.068,78.041,0.79070984]
[1771889893373,0.12640972,78.066,78.041,0.79070984]
[1771889894584,0.12840126,78.059,78.031,0.79070984]
[1771889895575,12.93922384,78.059,78.031,0.79070984]
[1771889896659,12.81082258,78.059,78.032,0.79070984]
[1771889896855,12.81016614,78.063,78.032,0.79070984]
[1771889897766,0.13423966,78.063,78.032,0.79070984]
[1771889898187,0.13423966,78.063,78.034,0.83847611]
[1771889903289,0.14885475,78.065,78.034,0.83847611]
[1771889903686,0.14885475,78.088,78.051,0.79502419]
[1771889903871,12.80590095,78.089,78.061,0.79502419]
[1771889904479,12.95648943,78.089,78.061,0.79502419]
[1771889904990,0.15058848,78.089,78.061,0.79502419]
[1771889909000,3.69383402,78.115,78.04,5.56042638]
[1771889909001,0.15732655,78.108,78.081,0.79502419]
[1771889909381,0.15896297,78.106,78.081,0.79502419]
[1771889909976,12.80262197,78.109,78.081,0.79502419]
[1771889911094,0.1605806,78.109,78.081,0.79502419]
[1771889915000,0.16686744,78.108,78.081,0.79502419]
[1771889915214,0.16686744,78.108,78.03,103.5]
[1771889915215,0.16839428,78.106,78.073,0.79502419]
[1771889915496,0.16839428,78.089,78.068,0.79502419]
[1771889916903,0.16990358,78.087,78.051,0.79502419]
[1771889917786,0.01080984,78.087,78.052,0.87025671]
[1771889918282,12.80622894,78.087,78.052,0.87025671]
[1771889919087,44.82180131,78.087,78.052,0.87025671]
[1771889919900,5.56042638,78.08,78.052,0.87025671]
[1771889920693,44.82180131,78.087,78.052,0.87025671]
[1771889920905,5.56042638,78.08,78.052,0.87025671]
[1771889923095,0.0216819,78.078,78.052,0.87025671]
[1771889924599,0.0216819,78.078,78.053,0.87025671]
[1771889927697,44.82180131,78.087,78.061,0.87025671]
[1771889929113,12.80622894,78.087,78.061,0.87025671]
[1771889932123,12.84638191,78.087,78.061,0.87025671]
[1771889933414,12.80622894,78.087,78.061,0.87025671]
[1771889937516,12.80556523,78.092,78.061,0.87025671]
[1771889938597,0.05144218,78.093,78.062,0.8708461]
[1771889942307,0.05144218,78.093,78.063,0.8708461]
[1771889943513,0.06197538,78.091,78.063,0.8708461]